Cogmind - Beta 17 @@@ ROGUE MODE // 2026.07.16 @ 16:28:36 Player: lxealomych Result: Destroyed by S-10 Pest with Light Assault Rifle Performance ------------- Evolutions (0) 0 Regions Visited (2) 400 Robots Destroyed (28) 140 Value Destroyed (585) 585 Prototype IDs (0) 0 Alien Tech Used (0) 0 Bonus (0) 0 TOTAL SCORE: 1125 Bonus ------- None Cogmind --------- Core Integrity 0/250 Matter 450/450 Energy 100/100 System Corruption 0% Temperature Cool (0) Movement Core (450) Ox8 Location -10/Mines Parts ------- > --- POWER (1) -------- (None) > --- PROPULSION (2) --- (None) > --- UTILITY (2) ------ Large Storage Unit Large Matter Pod > --- WEAPON (2) ------- Hammer > --- INVENTORY (15) --- Light Ion Engine Light Treads Flight Unit Flight Unit Heat Sink High-capacity Storage Unit Terrain Scanner ECM Suite Grenade Launcher Peak State ------------ > --- POWER ------------ Ion Engine > --- PROPULSION ------- Light Treads Light Treads > --- UTILITY ---------- Small Storage Unit Medium Storage Unit > --- WEAPON ----------- Small Laser Assault Rifle > --- INVENTORY -------- Ion Engine Light Treads Wheel Flight Unit Heat Sink Terrain Scanner ECM Suite Light Assault Rifle Mini Grenade Launcher [Rating: 8] Favorites ----------- Power Ion Engine Engine Ion Engine Propulsion Light Treads Treads Light Treads Utility Medium Storage Unit Storage Medium Storage Unit Weapon Small Laser Energy Gun Small Laser Ballistic Gun Light Assault Rifle Launcher Grenade Launcher Impact Weapon Hammer Build | -11 -10 -10 ------- Run | Yrd Mat Min Slots Evolved . | . . . Power . | . . . Propulsion . | . . . Utility . | . . . Weapon . | . . . Parts Attached 20 | 6 10 4 Power 3 | 1 1 1 Engine 3 | 1 1 1 Core . | . . . Reactor . | . . . Propulsion 5 | 2 2 1 Treads 5 | 2 2 1 Leg . | . . . Wheel . | . . . Hover . | . . . Flight . | . . . Utility 4 | 1 2 1 Device . | . . . Storage 4 | 1 2 1 Processor . | . . . Hackware . | . . . Protection . | . . . Artifact . | . . . Weapon 8 | 2 5 1 Energy Gun 3 | 1 2 . Energy Cannon . | . . . Ballistic Gun 3 | 1 2 . Ballistic Cannon . | . . . Launcher 1 | . . 1 Special Weapon . | . . . Impact Weapon 1 | . 1 . Slashing Weapon . | . . . Piercing Weapon . | . . . Special Melee Weapon . | . . . Unidentified Prototypes . | . . . Parts Lost 6 | . . 6 Power 2 | . . 2 Propulsion 3 | . . 3 Utility . | . . . Weapon 1 | . . 1 Highest Loss Streak 4 | . . 4 To Critical Strikes . | . . . Average Backups 9 | 4 9 9 Power 1 | . 1 1 Propulsion 3 | 3 3 3 Utility 3 | . 3 4 Weapon 1 | . 1 1 Tool/Special . | . . . Unused Backups 14 | . 7 7 Power 1 | . . 1 Propulsion 8 | . 6 2 Utility 4 | . . 4 Weapon 1 | . 1 . Tool/Special . | . . . Average Slot Usage (%) 91 | . 89 96 Engine 13 | . 14 11 Treads 27 | . 28 26 Storage 20 | . 17 28 Energy Gun 8 | . 12 . Ballistic Gun 11 | . 14 6 Launcher 2 | . . 7 Impact Weapon 5 | . 1 14 Peak Build Rating 8 | 6 8 8 Average Rating 7 | 4 6 7 On Entrance 4 | . 6 8 Avg Prop Armor Cover (%) . | . . . Naked Turns . | . . . Heaviest Build 31 | 13 23 31 Greatest Support 40 | 40 40 40 Greatest Overweight (x) 8 | . . 8 Average Overweight (x) . | . . . Largest Inventory Capacity 15 | 8 10 15 Average Capacity 9 | 6 9 11 Most Carried 11 | 6 10 11 Average Carried 9 | 4 9 9 Final Capacity 15 | 8 10 15 Final Carried 10 | 6 10 9 Class Distribution -------------------- 100% | Mutant Dominant Class ---------------- Mutant | -10/Materials Mutant | -10/Mines Resources | -11 -10 -10 ----------- Run | Yrd Mat Min Matter Collected 805 | 203 286 316 Remotely . | . . . Salvage Created 702 | . 401 301 Parts 45 | . 26 19 Haulers Intercepted 2 | . 2 . Recyclers Shooed . | . . . Parts Field Recycled . | . . . Retrieved Matter . | . . . Parts Self-Destructed . | . . . Prevented . | . . . Parts Restored . | . . . Kills | -11 -10 -10 ------- Run | Yrd Mat Min Combat Hostiles Destroyed 23 | . 11 12 Melee 2 | . . 2 Guns 14 | . 11 3 AOE 7 | . . 7 Classes Destroyed 6 | . 4 2 Worker 1 | . . 1 Tunneler 1 | . . 1 Hauler 2 | . 2 . Watcher 1 | . 1 . Swarmer 11 | . 6 5 Grunt 12 | . 5 7 Best Kill Streak 3 | . 3 3 Combat Bots Only 3 | . 3 3 Max Kills in Single Turn 2 | . 2 2 Gunslinging . | . . . Exploded 2 | . . 2 Melee 1 | . . 1 Uniques/NPCs Destroyed . | . . . Combat | -11 -10 -10 -------- Run | Yrd Mat Min Hostile Shots Fired 137 | . 51 86 Missed 20 | . 4 16 Hits 117 | . 47 70 Projectile 117 | . 47 70 Damage Taken 1249 | . 506 743 Core 254 | . 74 180 Absorbed by Shields . | . . . Core Remaining (%) 100 | 100 . . Volleys Fired 99 | . 49 50 Largest 2 | . 2 1 Hottest 60 | . 60 30 Shots Fired 142 | . 92 50 Gun 130 | . 92 38 Cannon . | . . . Launcher 12 | . . 12 Special . | . . . Kinetic 87 | . 49 38 Thermal 43 | . 43 . Explosive 12 | . . 12 Electromagnetic . | . . . Robot Hit Streak 9 | . 8 9 Robot Miss Streak 5 | . 5 2 Penetration Max . | . . . Secondary Targets 1 | . 1 . Max Gunslinging Chain 1 | . 1 . Shots Hit Robots 94 | . 55 39 Core Hits 49 | . 24 25 Critical Kills . | . . . Critical Parts Destroyed 3 | . . 3 Critical Strikes 3 | . . 3 Smash 3 | . . 3 Melee Attacks 27 | . . 27 Impact 27 | . . 27 Slashing . | . . . Piercing . | . . . Sneak Attacks . | . . . Combat Hostiles . | . . . Follow-up Attacks . | . . . Damage Inflicted 1541 | . 611 930 Guns 831 | . 611 220 Cannons . | . . . Explosions 569 | . . 569 Melee 141 | . . 141 Ramming . | . . . Kinetic 508 | . 288 220 Thermal 323 | . 323 . Explosive 569 | . . 569 Electromagnetic . | . . . Impact 141 | . . 141 Slashing . | . . . Piercing . | . . . Highest Corruption . | . . . Average Corruption . | . . . Corruption Purged . | . . . Corruption Blocked . | . . . Overload Shots . | . . . Overflow Damage 59 | . . 59 Projectiles . | . . . Explosions . | . . . Melee 59 | . . 59 Knockbacks . | . . . Impact . | . . . Kinetic . | . . . Secondary . | . . . Self-Inflicted Damage 38 | . . 38 Shots 2 | . . 2 Rammed . | . . . Targets Rammed . | . . . Kicked . | . . . Crushed . | . . . Highest Temperature 99 | . 99 10 Average Temperature 31 | . 36 6 Received Heat Transfer 420 | . 183 237 Siege Activations . | . . . Martial Activations . | . . . Shielding Activations . | . . . Robots Disrupted . | . . . Combat Hostiles . | . . . Robots Corrupted . | . . . Combat Hostiles . | . . . Parts Fried . | . . . Impact Corruptions 3 | . . 3 Robots Melted . | . . . Combat Hostiles . | . . . Parts Melted 1 | . 1 . Heat Transferred 750 | . 750 . Parts Sabotaged . | . . . Parts Stolen . | . . . Parts Stripped . | . . . Power Chain Reactions . | . . . Alert | -11 -10 -10 ------- Run | Yrd Mat Min Maximum Alert Level . | . . . Low Security (%) 100 | 100 100 100 Level 1 . | . . . Level 2 . | . . . Level 3 . | . . . Level 4 . | . . . Level 5 . | . . . High Security . | . . . Max Security . | . . . Peak Influence 121 | . 112 121 Initial 16 | . . 16 Average 37 | . 35 51 Influence Increases 685 | . 323 362 Destroy 0b10 Robot/C 460 | . 220 240 Destroy 0b10 Robot/NC 25 | . 15 10 Destroy Leader 76 | . 46 30 Successful Hack 12 | . 12 . Destroy Structure 52 | . . 52 Lose Combat Pursuer 60 | . 30 30 Influence Decreases 592 | . 280 312 Entered New Map 27 | . . 27 Time Decay 505 | . 280 225 Lost Part 60 | . . 60 Squads Dispatched 1 | . 1 . Investigation 1 | . 1 . Extermination . | . . . Reinforcement . | . . . Assault . | . . . Garrison . | . . . Intercept . | . . . Searches Triggered . | . . . Construction Impeded . | . . . Haulers Reinforced . | . . . Active Scanning Responses . | . . . Cargo Convoy Interrupts . | . . . Stealth | -11 -10 -10 --------- Run | Yrd Mat Min Distress Signals . | . . . Communications Jammed . | . . . Distress Signals . | . . . Times Spotted 36 | . 21 15 Peak Tracking Total 4 | . 4 4 Tactical Retreats 2 | . 1 1 Traps | -11 -10 -10 ------- Run | Yrd Mat Min Traps Triggered 1 | . 1 . Indirectly . | . . . Trap Hack Attempts . | . . . Triggered . | . . . Disarmed . | . . . Reprogrammed . | . . . Reused . | . . . Traps Extracted . | . . . Installed . | . . . Triggered . | . . . Machines | -11 -10 -10 ---------- Run | Yrd Mat Min Machines Disabled . | . . . Max in Single Turn . | . . . Machines Repaired . | . . . Machines Dismantled . | . . . Machines Sabotaged . | . . . Overloaded Fab Kills . | . . . Hacking | -11 -10 -10 --------- Run | Yrd Mat Min Machines Accessed 6 | . 6 . Terminals 4 | . 4 . Fabricators . | . . . Repair Stations . | . . . Recycling Units 2 | . 2 . Scanalyzers . | . . . Garrison Access . | . . . Total Hacks 15 | . 15 . Successful 3 | . 3 . Failed 12 | . 12 . Catastrophic 5 | . 5 . Database Lockouts . | . . . Manual 11 | . 11 . Terminals 11 | . 11 . Fabricators . | . . . Repair Stations . | . . . Recycling Units 4 | . 4 . Scanalyzers . | . . . Garrison Access . | . . . Terminal Hacks 2 | . 2 . Branch Access Points 1 | . 1 . Locate Traps 1 | . 1 . Fabricator Hacks . | . . . Repair Station Hacks . | . . . Recycling Unit Hacks 1 | . 1 . Retrieve Components 1 | . 1 . Scanalyzer . | . . . Garrison Access Hacks . | . . . Unauthorized Hacks . | . . . Terminals . | . . . Fabricators . | . . . Repair Stations . | . . . Recycling Units . | . . . Scanalyzers . | . . . Garrison Access . | . . . Data Cores Recovered . | . . . Used . | . . . Hacking Detections 4 | . 4 . Full Trace Events . | . . . Feedback Events . | . . . Feedback Blocked . | . . . Robot Schematics Acquired . | . . . Robots Built . | . . . Authchips . | . . . Time . | . . . Total Robot Build Rating . | . . . Part Schematics Acquired . | . . . Parts Built . | . . . Authchips . | . . . Time . | . . . Total Part Build Rating . | . . . Part Studies Acquired . | . . . Parts Repaired . | . . . Time . | . . . Parts Recycled . | . . . Recycled Matter . | . . . Retrieved Matter . | . . . Retrieved Components 10 | . 10 . Parts Scanalyzed . | . . . Part Schematics Acquired . | . . . Parts Damaged . | . . . Bothacking | -11 -10 -10 ------------ Run | Yrd Mat Min Used RIF Installer . | . . . Robots Hacked . | . . . Non-combat . | . . . Combat . | . . . Robot Hacks Applied . | . . . Relay Couplers Released . | . . . Fabnet Peak Effective % . | . . . Robots Rewired . | . . . Allies Hacked . | . . . Hacks Repelled . | . . . Allies | -11 -10 -10 -------- Run | Yrd Mat Min Total Allies . | . . . Largest Group . | . . . Highest-Rated Group . | . . . Highest-Rated Ally . | . . . Total Orders . | . . . Ally Attacks . | . . . Total Damage . | . . . Kills . | . . . Allies Corrupted . | . . . Allies Melted . | . . . Intel | -11 -10 -10 ------- Run | Yrd Mat Min Active Infowar (turns) . | . . . Robot Analysis Total . | . . . Derelict Logs Recovered 1 | . . 1 Drone Launches . | . . . Drone Recoveries . | . . . Exploration | -11 -10 -10 ------------- Run | Yrd Mat Min Turns Passed 2203 | 121 1471 611 Spaces Moved 1110 | 69 768 273 Core 4 | 3 . 1 Treads 1106 | 66 768 272 Legs . | . . . Wheels . | . . . Hover . | . . . Flight . | . . . Fastest Speed 50 | 50 160 160 Average Speed 159 | 155 160 161 Slowest Speed 450 | 160 160 450 Overloaded Moves . | . . . Propulsion Burnouts . | . . . Robots Hopped . | . . . Potential Cave-ins . | . . . Cave-ins Triggered . | . . . Exploration Rate (%) 49 | 4 95 50 Regions Visited 2 Branch Regions 1 Pre-discovered Areas . | . . . Known Exits Taken 1 | . 1 . Unknown Exits Taken 1 | 1 . . Scrap Searched 2 | . . 2 Spaces Dug . | . . . Terrain Destroyed 78 | . . 78 Melee . | . . . Projectile . | . . . AOE 78 | . . 78 Terrain Rammed . | . . . Walls Destroyed . | . . . Machines Disabled . | . . . Actions | -11 -10 -10 --------- Run | Yrd Mat Min Total 1368 | 80 931 357 Wait 71 | . 71 . Move 1108 | 68 767 273 Hop . | . . . Pick Up 22 | 6 16 . Fast Attach 9 | 6 2 1 Attach 3 | . 1 2 Detach 1 | . . 1 Swap 9 | . 7 2 Drop 19 | . 18 1 Fire 99 | . 49 50 Melee 27 | . . 27 Ram . | . . . Kick . | . . . Crush . | . . . Escape Stasis . | . . . Rewire . | . . . Trap . | . . . Miscellaneous . | . . . Route ------- -11/Scrapyard -10/Materials (discovered 4 exits: [*Mat x3] / *Min) -10/Mines History --------- Turn | Location | Event 21 | -11/Scrapyard | Discovered new exit (range 15) 122 | -11/Scrapyard | Entered Materials 216 | -10/Materials | Discovered new exit (range 14) 309 | -10/Materials | Build established: Mutant 461 | -10/Materials | Discovered new exit (range 3) 802 | -10/Materials | Discovered new exit (range 10) 953 | -10/Materials | Discovered new exit (range 10) 1539 | -10/Materials | Identified exit to Mines 1593 | -10/Materials | Entered Mines 1812 | -10/Mines | Excavation squad dispatched 1812 | -10/Mines | A large section of the Mines collapsed 1968 | -10/Mines | Core integrity fell below 50% 2051 | -10/Mines | Learned Materials terminal intel 2175 | -10/Mines | Core integrity fell below 20% 2204 | -10/Mines | Destroyed by S-10 Pest with Light Assault Rifle Last Messages --------------- 02125_ Lgt. Treads destroyed. 02140_ G-47 Trooper destroyed. 02151_ K-01 Serf collects debris. 02163_ G-34 Mercenary suffers critical hit (Smash). 02163_ Destroyed Sml. Laser. 02163_ G-34 Mercenary system corrupted by crushing effect. 02169_ Acquired 51 matter. 02172_ S-10 Pest suffers critical hit (Smash). 02172_ Destroyed Flight Unit. 02172_ S-10 Pest system corrupted by crushing effect. 02172_ S-10 Pest destroyed. 02179_ Lgt. Treads destroyed. 02189_ S-10 Pest suffers critical hit (Smash). 02189_ Destroyed Flight Unit. 02189_ S-10 Pest system corrupted by crushing effect. 02189_ Ion Engine destroyed. 02192_ Lgt. Assault Rifle destroyed. 02198_ S-10 Pest misfires. 02200_ S-10 Pest destroyed. 02202_ Lgt. Treads destroyed. Map ----- +----------------------------------------------------+ | ?????????????????????????????????????????????????? | | ?????????????????????????????????????????????????? | | ?????????????????????????????????????????????????? | | ?????????????????????????????????????????????????? | | ?????????????????????????????????????????????????? | | ?????????????????????????????????????????????????? | | ?????????????????????????????????????????????????? | | ?????????????????????????????????????????????????? | | ?????????????????????????????????????????????????? | | ?????????????????????????????????????????????????? | | ?????????????????????????????????????????????????? | | ?????????????????????????????????????????????????? | | ?????????????????????????????????????????????????? | | ?????????????????????????????????????????????????? | | ?????????????????????? ??????????????????????????? | | ?????????????????????? ??????????????????????????? | | ????????????????????? ????????????????##########? | | ????????????????????? ####????????????# #? | | ????????????????????? #????????????# """ #? | | ????????????????????? #????????????# """ #? | | ?????????????????????""" #????????????# """ #? | | ??????????????????????"" ?????????????# #? | | ???????????????????????" ?????????????# #? | | ???????????????????????#=#?????????????# #? | | ???????????????????????#s##########????## #######? | | ???????????????????????#*@![* ####### #??????? | | ???????????????????????########## #??????? | | ????????????????????????????????######### #??????? | | ????????????????????????????????????????# #??????? | | ????????????????????????????????????????# #??????? | | ????????????????????????????????????????# #??????? | | ????????????????????????????????????????# #??????? | | ?????????????????? ????????????????????# #??????? | | ????????????????? ???????????????????# #??????? | | ????????????????? ??????????????????# #?####?? | | ???????????????? #?????????????????# ### #?? | | ????? ##??????? #?????????????#### ## #?? | | ????? #?????? #???????????## # ## #?? | | ????? ##??# #?????###### ##? | | ???? ### ? ###### = ## # # = #? | | ????? ???# ! = ! #? | | ????? #?????# #? | | ????? #??????# ######## #? | | ????? % #???????## ##### # ##? | | ?????# * #????????#### ###??# ## ##?? | | ###### #??????????## # ###### # ##??? | | # ## # %= ?????####### # ##?#### #???? | | ## % #?????## ## #????# #???? | | # ##????## # # #?????# ???? | | #???## ###### # ##?????# #??? | +----------------------------------------------------+ Best States ------------- Heat Dissipation 25 Energy Generation 10 Energy Capacity 250 Matter Stores 450 Matter Capacity 450 Sight Range 16 Terrain Scan Density 10 Evasion (%) 40 Recoil Reduction 2 Item Schematics ----------------- None Robot Schematics ------------------ None Fabricated ------------ Nothing Repaired ---------- Nothing Studied --------- None Alien Tech Used ----------------- None Achievements -------------- None Challenges ------------ None Game ------ Seed ReflectiveComponentCompanion Manual? 0 Play Time 00:14:36 Cumulative 20.4 hours Start 2026.07.16 @ 16:14:34 End 2026.07.16 @ 16:28:36 Sessions 1 Manual Loads 0 Difficulty Rogue Special Mode None Game No. 20 Rogue 17 Adventurer 3 Explorer 0 Win Type - Total 0 Types 0/0/0/0/0/0/0/0/0/0 Lore% 10 Gallery% 23 Achievement% 19 Wizard Run 0 Options --------- Layout 0 ASCII 0 Keyboard 0 Movement Numpad Keybinds 0 Fullscreen 1 Font 18/SmallcapsGlow Map View 76x50 Zoom Use 0% Tactical HUD 1 Map Filters NONE Filters NONE Steam 1 RUN: 22767ffa-e553-410c-b901-b512e58a9a79